bitfinex/quotes_SOLUSD_20230101
["timestamp","ask_amount","ask_price","bid_price","bid_amount"]
[1672576335547,115.36782242,9.9373,9.929,40.0]
[1672576335776,115.36782242,9.9373,9.9291,75.61]
[1672576335965,115.36782242,9.9373,9.9314,75.6]
[1672576337975,115.36782242,9.9373,9.9288,40.0]
[1672576338167,115.36782242,9.9373,9.9289,377.92]
[1672576340272,115.36782242,9.9373,9.929,40.0]
[1672576340488,115.36782242,9.9373,9.9291,75.61]
[1672576344484,115.36782242,9.9373,9.9288,40.0]
[1672576344701,115.36782242,9.9373,9.9291,40.0]
[1672576344894,115.36782242,9.9373,9.9294,40.0]
[1672576345098,115.36782242,9.9373,9.9296,302.3]
[1672576345325,115.36782242,9.9373,9.9299,40.0]
[1672576345527,115.36782242,9.9373,9.93,75.61]
[1672576345734,115.36782242,9.9373,9.9299,75.61]
[1672576346157,191.29729734,9.9373,9.9292,75.61]
[1672576346367,191.29729734,9.9373,9.9289,75.62]
[1672576346898,191.29729734,9.9373,9.9286,75.62]
[1672576350175,66.3958963,9.9372,9.9248,75.65]
[1672576350373,66.3958963,9.9372,9.9173,302.48225384]
[1672576350374,135.0717963,9.9372,9.923,302.3]
[1672576350593,40.0,9.937,9.9232,302.3]
[1672576350804,35.31,9.9369,9.9234,302.3]
[1672576351123,40.0,9.9368,9.9236,302.3]
[1672576351330,40.0,9.9366,9.9238,302.3]
[1672576351540,35.31,9.9365,9.924,302.3]
[1672576351744,35.31,9.9365,9.9221,23.2266]
[1672576351745,40.0,9.9364,9.9242,302.3]
[1672576351961,40.0,9.9362,9.9244,302.3]
[1672576352158,35.31,9.9361,9.9246,302.3]
[1672576352482,40.0,9.936,9.9248,302.3]
[1672576352698,40.0,9.9358,9.9249,377.95]
[1672576352907,40.0,9.9356,9.9249,377.95]
[1672576353428,40.0,9.9354,9.9249,377.95]
[1672576353841,40.0,9.9352,9.9249,377.95]
[1672576354052,40.0,9.935,9.9249,377.95]
[1672576354253,20.0,9.9349,9.9249,377.95]
[1672576354469,40.0,9.9348,9.9249,377.95]
[1672576354686,40.0,9.9346,9.9249,377.95]
[1672576354900,40.0,9.9344,9.9249,377.95]
[1672576355431,40.0,9.9342,9.9249,377.95]
[1672576355852,40.0,9.934,9.9249,377.95]
[1672576356043,40.0,9.9338,9.9249,377.95]
[1672576356253,20.0,9.9337,9.9249,377.95]
[1672576356480,40.0,9.9336,9.9249,377.95]
[1672576356691,40.0,9.9334,9.9249,377.95]
[1672576356906,40.0,9.9332,9.9249,377.95]
[1672576357097,20.0,9.9331,9.9249,377.95]
[1672576357307,40.0,9.933,9.9249,377.95]
[1672576357724,40.0,9.9328,9.9249,377.95]
[1672576357937,20.0,9.9327,9.9249,377.95]
[1672576358144,40.0,9.9326,9.9249,377.95]
[1672576358366,20.0,9.9325,9.9249,377.95]
[1672576361518,20.0,9.9328,9.925,40.0]
[1672576361729,20.0,9.9328,9.9253,40.0]
[1672576361945,20.0,9.9328,9.9256,40.0]
[1672576362154,20.0,9.9328,9.9253,40.0]
[1672576362155,40.0,9.9327,9.9258,302.3]
[1672576362373,20.0,9.9326,9.9259,75.64]
[1672576363006,20.0,9.9328,9.926,40.0]
[1672576363189,20.0,9.9328,9.9263,40.0]
[1672576363395,20.0,9.9328,9.9265,302.3]
[1672576363738,20.0,9.9328,9.9268,40.0]
[1672576364046,20.0,9.9328,9.9269,75.63]
[1672576364238,20.0,9.9328,9.9268,377.93]
[1672576364445,40.0,9.9327,9.9268,377.93]
[1672576364986,20.0,9.9326,9.9268,377.93]
[1672576365920,20.0,9.9328,9.9268,377.93]
[1672576366134,40.0,9.9327,9.9268,377.93]
[1672576366343,20.0,9.9326,9.9268,377.93]
[1672576366986,20.0,9.9326,9.9269,40.0]
[1672576367203,20.0,9.9328,9.927,75.63]
[1672576367604,40.0,9.9327,9.9252,302.3]
[1672576367821,20.0,9.9326,9.9254,302.3]
[1672576368045,20.0,9.9326,9.9256,302.3]
[1672576368249,20.0,9.9326,9.9258,302.3]
[1672576368448,20.0,9.9326,9.926,40.0]
[1672576368780,40.0,9.9325,9.9261,75.64]
[1672576368994,20.0,9.9324,9.9259,75.64]
[1672576369394,20.0,9.9324,9.9252,302.3]
[1672576369603,20.0,9.9324,9.9255,40.0]
[1672576369813,20.0,9.9324,9.9257,302.3]
[1672576370037,20.0,9.9324,9.9258,377.94]
[1672576370248,20.0,9.9328,9.9258,377.94]
[1672576370457,40.0,9.9327,9.9258,377.94]
[1672576370667,20.0,9.9326,9.9258,377.94]
[1672576371410,40.0,9.9325,9.9258,377.94]
[1672576371723,40.0,9.9323,9.9258,377.94]
[1672576371929,20.0,9.9322,9.9258,377.94]
[1672576376033,20.0,9.9324,9.9258,377.94]
[1672576379629,40.0,9.9323,9.9258,377.94]
[1672576379836,20.0,9.9322,9.9258,377.94]
[1672576380042,40.0,9.9321,9.9258,377.94]
[1672576380233,40.0,9.9319,9.9258,377.94]
[1672576380444,20.0,9.9318,9.9258,377.94]
[1672576384543,20.0,9.932,9.9258,377.94]
[1672576385802,20.0,9.9322,9.9258,377.94]
[1672576392648,20.0,9.9326,9.9258,377.94]
[1672576394343,40.0,9.9325,9.9258,75.64]
[1672576394533,40.0,9.9323,9.9232,40.0]
[1672576394746,20.0,9.9322,9.9234,302.3]
[1672576394981,20.0,9.9322,9.9237,40.0]
[1672576395162,20.0,9.9322,9.9239,302.3]
[1672576395376,20.0,9.9322,9.9241,302.3]
[1672576395580,40.0,9.9321,9.9243,302.3]
[1672576395807,20.0,9.932,9.9245,302.3]
[1672576396015,40.0,9.9319,9.9247,302.3]
[1672576396337,20.0,9.9318,9.9248,75.65]
[1672576397178,20.0,9.9318,9.9239,302.3]
[1672576397381,20.0,9.9318,9.9241,302.3]
[1672576397576,20.0,9.9318,9.9243,302.3]
[1672576397791,20.0,9.9318,9.9245,302.3]
[1672576398120,20.0,9.9318,9.9247,302.3]
[1672576398339,20.0,9.9318,9.9248,75.65]
[1672576399171,20.0,9.9318,9.9239,302.3]
[1672576399373,20.0,9.9318,9.924,75.65]
[1672576399594,40.0,9.9317,9.924,75.65]
[1672576400568,40.0,9.9317,9.9231,302.3]
[1672576400779,40.0,9.9317,9.9233,302.3]
[1672576400973,40.0,9.9317,9.9235,302.3]
[1672576401303,40.0,9.9317,9.9237,302.3]
[1672576401512,40.0,9.9317,9.9238,377.96]
[1672576401724,40.0,9.9315,9.9238,377.96]
[1672576403704,115.36782242,9.9315,9.9238,377.96]
[1672576404653,191.29729734,9.9315,9.9238,377.96]
[1672576412114,191.29729734,9.9315,9.9238,75.66]
[1672576412325,191.29729734,9.9315,9.923,75.66]
[1672576413258,191.29729734,9.9315,9.923,75.57073355]
[1672576417592,13.03609559,9.9314,9.923,75.57073355]
[1672576418015,40.0,9.9312,9.923,75.57073355]
[1672576418429,40.0,9.931,9.9231,302.3]
[1672576418764,115.36782242,9.931,9.9233,302.3]
[1672576418964,115.36782242,9.931,9.9235,342.3]
[1672576418965,40.0,9.9309,9.9235,342.3]
[1672576419168,75.36782242,9.931,9.9237,302.3]
[1672576419484,40.0,9.9307,9.9238,75.66]
[1672576419906,40.0,9.9305,9.9238,75.66]
[1672576420221,75.36782242,9.9304,9.9238,75.66]
[1672576420435,40.0,9.9303,9.923,75.66]
[1672576420841,40.0,9.9301,9.923,75.66]
[1672576421374,40.0,9.9299,9.923,75.66]
[1672576421781,40.0,9.9297,9.923,75.66]
[1672576422001,40.0,9.9297,9.9229,23.4718]
[1672576422205,40.0,9.9295,9.9229,23.4718]
[1672576422630,40.0,9.9293,9.9229,23.4718]
[1672576423044,151.93889197,9.9292,9.9229,23.4718]
[1672576423486,88.96557051,9.9291,9.9229,23.4718]
[1672576423689,40.0,9.929,9.9229,23.4718]
[1672576423898,15.4,9.9289,9.9229,23.4718]
[1672576424109,40.0,9.9288,9.9229,23.4718]
[1672576424304,116.00941705,9.9288,9.9229,23.4718]
[1672576424632,40.0,9.9286,9.9229,23.4718]
[1672576425040,40.0,9.9284,9.9229,23.4718]
[1672576425572,40.0,9.9282,9.9229,23.4718]
[1672576426001,151.93889197,9.9281,9.9229,23.4718]
[1672576426195,40.0,9.928,9.9229,23.4718]
[1672576426412,191.93889197,9.928,9.9229,23.4718]
[1672576426623,40.0,9.9278,9.9229,23.4718]
[1672576427041,40.0,9.9276,9.9229,23.4718]
[1672576427457,76.00941705,9.9275,9.9229,23.4718]
[1672576427681,40.0,9.9274,9.9229,23.4718]
[1672576437250,76.00941705,9.9275,9.9229,23.4718]
[1672576437441,40.0,9.9274,9.9229,23.4718]
[1672576438713,116.00941705,9.9274,9.9229,23.4718]
[1672576439449,115.92947492,9.9274,9.9229,23.4718]
[1672576440604,13.03609559,9.9273,9.9229,23.4718]
[1672576441032,40.0,9.9271,9.9229,23.4718]
[1672576441451,40.0,9.9269,9.9229,23.4718]
[1672576441870,40.0,9.9267,9.9229,23.4718]
[1672576442286,115.92947492,9.9267,9.9229,23.4718]
[1672576465432,115.92947492,9.9267,9.923,13.4573443]
[1672576475303,40.0,9.9265,9.923,13.4573443]
[1672576475830,40.0,9.9263,9.923,13.4573443]
[1672576476142,40.0,9.9261,9.923,13.4573443]
[1672576476551,40.0,9.9259,9.923,13.4573443]
[1672576476973,40.0,9.9257,9.923,13.4573443]
[1672576478229,40.0,9.9257,9.9219,24.272]
[1672576479288,40.0,9.9257,9.922,13.47565718]
[1672576481599,40.0,9.9255,9.922,13.47565718]
[1672576483499,40.0,9.9253,9.922,13.47565718]
[1672576484746,76.01976086,9.9252,9.922,13.47565718]
[1672576484954,40.0,9.9251,9.922,13.47565718]
[1672576485162,115.92947492,9.9251,9.922,13.47565718]
[1672576485478,40.0,9.9249,9.922,13.47565718]
[1672576487379,40.0,9.9249,9.9201,22.7893]
[1672576488224,40.0,9.9249,9.9202,13.50862967]
[1672576490949,40.0,9.9249,9.9203,75.68]
[1672576491157,40.0,9.9249,9.9202,13.50862967]
[1672576491366,40.0,9.9249,9.9203,13.50679755]
[1672576500829,40.0,9.9247,9.9203,13.50679755]
[1672576501258,40.0,9.9247,9.9131,40.0]
[1672576501259,225.11618664,9.9246,9.9132,234.40777077]
[1672576501468,40.0,9.9245,9.9132,258.59227077]
[1672576501685,245.11618664,9.9245,9.9133,158.66777077]
[1672576501897,40.0,9.9243,9.9134,75.73]
[1672576502101,40.0,9.9241,9.9136,40.0]
[1672576502309,20.0,9.924,9.9137,234.39777077]
[1672576502519,40.0,9.9239,9.9138,198.66777077]
[1672576502836,20.0,9.9238,9.9139,234.39777077]
[1672576503045,40.0,9.9237,9.914,158.66777077]
[1672576503238,20.0,9.9236,9.9141,75.73]
[1672576503458,40.0,9.9235,9.9142,158.66777077]
[1672576503787,40.0,9.9233,9.9143,75.73]
[1672576503992,40.0,9.9231,9.9144,158.66777077]
[1672576504313,40.0,9.9229,9.9145,75.73]
[1672576504507,40.0,9.9227,9.9147,40.0]
[1672576504725,40.0,9.9227,9.9138,24.6188]
[1672576504726,20.0,9.9226,9.9148,234.38777077]
[1672576504931,20.0,9.9226,9.9149,158.66777077]
[1672576505170,20.0,9.9226,9.915,75.72]
[1672576505387,20.0,9.9226,9.9151,158.66777077]
[1672576505697,20.0,9.9226,9.9152,75.72]
[1672576505888,20.0,9.9226,9.9153,158.66777077]
[1672576506089,20.0,9.9226,9.9154,75.72]
[1672576506303,20.0,9.9226,9.9155,158.66777077]
[1672576506537,20.0,9.9226,9.9156,75.72]
[1672576506725,40.0,9.9225,9.9157,158.66777077]
[1672576506935,40.0,9.9223,9.9158,75.72]
[1672576507156,20.0,9.9222,9.9159,158.66777077]
[1672576507371,40.0,9.9221,9.916,75.71]
[1672576507584,20.0,9.922,9.9161,158.66777077]
[1672576507792,40.0,9.9219,9.9162,75.71]
[1672576508108,20.0,9.9218,9.9163,158.66777077]
[1672576508323,20.0,9.9218,9.9164,75.71]
[1672576508531,20.0,9.9218,9.9165,158.66777077]
[1672576508723,20.0,9.9218,9.9166,75.71]
[1672576508933,20.0,9.9218,9.9167,158.66777077]
[1672576509691,20.0,9.9218,9.9167,234.37777077]
[1672576510001,40.0,9.9217,9.9168,158.66777077]
[1672576513461,40.0,9.9217,9.9169,13.56911032]
[1672576518621,20.0,9.9218,9.9169,13.56911032]
[1672576518835,387.43886832,9.9334,9.9169,13.56911032]
[1672576518836,40.0,9.9358,9.917,20.0]
[1672576519043,110.3654,9.9333,9.9171,683.00351215]
[1672576519259,13.06554882,9.9282,9.9173,40.0]
[1672576519466,13.06554882,9.9282,9.9175,40.0]
[1672576519666,40.0,9.928,9.9176,430.58362444]
[1672576519876,40.0,9.928,9.9177,394.88362444]
[1672576520087,40.0,9.928,9.9179,40.0]
[1672576520088,76.01976086,9.9279,9.9179,40.0]
[1672576520306,76.01976086,9.9279,9.918,430.58362444]
[1672576520524,76.01976086,9.9279,9.9181,196.36971215]
[1672576520722,40.0,9.9278,9.9183,40.0]
[1672576520935,40.0,9.9278,9.9185,40.0]
[1672576521153,116.01976086,9.9278,9.9186,75.69]
[1672576521477,116.01976086,9.9278,9.9187,40.0]
[1672576521667,116.01976086,9.9278,9.9189,40.0]
[1672576521876,116.01976086,9.9278,9.9191,40.0]
[1672576522081,116.01976086,9.9278,9.9193,40.0]
[1672576522297,116.01976086,9.9278,9.9194,75.69]
[1672576522503,116.01976086,9.9278,9.9194,99.6669]
[1672576522959,116.01976086,9.9278,9.9195,40.0]
[1672576523261,116.01976086,9.9278,9.9197,40.0]
[1672576523460,116.01976086,9.9278,9.9199,40.0]
[1672576523672,116.01976086,9.9278,9.9201,40.0]
[1672576523868,40.0,9.9277,9.9202,75.68]
[1672576524083,40.0,9.9277,9.9199,75.68]
[1672576524939,40.0,9.9277,9.92,22.8526]
[1672576525152,40.0,9.9277,9.9201,75.68]
[1672576525680,40.0,9.9277,9.9202,22.8526]
[1672576525896,76.01976086,9.9278,9.9204,40.0]
[1672576526208,76.01976086,9.9278,9.9206,40.0]
[1672576526520,76.01976086,9.9278,9.9208,40.0]
[1672576526836,76.01976086,9.9278,9.9209,75.68]
[1672576527342,76.01976086,9.9278,9.9209,89.17580561]
[1672576529019,40.0,9.9277,9.9209,89.17580561]
[1672576529663,76.01976086,9.9278,9.9209,89.17580561]
[1672576530282,40.0,9.9277,9.9209,89.17580561]
[1672576530708,116.01976086,9.9277,9.9209,89.17580561]
[1672576531774,76.01976086,9.9277,9.9209,89.17580561]
[1672576533242,76.01976086,9.9277,9.9209,75.68]
[1672576533454,76.01976086,9.9277,9.9208,75.68]
[1672576534063,40.0,9.9276,9.9208,75.68]
[1672576535542,76.01976086,9.9277,9.9208,75.68]
[1672576535754,40.0,9.9276,9.9208,75.68]
[1672576536399,76.01976086,9.9277,9.9208,75.68]
[1672576539554,40.0,9.9276,9.9208,75.68]
[1672576549424,76.01976086,9.9277,9.9208,75.68]
[1672576549845,40.0,9.929,9.9208,75.68]
[1672576550058,76.01976086,9.9289,9.921,40.0]
[1672576550278,76.01976086,9.9289,9.9212,40.0]
[1672576550488,40.0,9.9288,9.9213,75.67]
[1672576550703,40.0,9.9288,9.9213,99.3813]
[1672576550899,40.0,9.9286,9.9213,99.3813]
[1672576551224,40.0,9.9284,9.9214,40.0]
[1672576551432,40.0,9.9284,9.9216,40.0]
[1672576551651,76.01976086,9.9283,9.9215,75.67]
[1672576552385,76.01976086,9.9283,9.9214,75.67]
[1672576553212,76.01976086,9.9283,9.9215,40.0]
[1672576553435,40.0,9.9282,9.9216,75.67]
[1672576553643,40.0,9.9282,9.9214,75.67]
[1672576553858,40.0,9.928,9.9214,75.67]
[1672576554275,40.0,9.928,9.9213,23.7113]
[1672576566142,40.0,9.928,9.9213,23.2113]
[1672576569307,116.01976086,9.928,9.9213,23.2113]
[1672576591711,76.01976086,9.928,9.9213,23.2113]
[1672576591927,76.01976086,9.928,9.9216,40.0]
[1672576592246,75.40947492,9.9288,9.9218,40.0]
[1672576592774,75.40947492,9.9288,9.922,40.0]
[1672576593087,75.40947492,9.9288,9.9222,342.3]
[1672576593300,74.89396086,9.9296,9.9222,342.3]
[1672576593487,74.89396086,9.9296,9.9225,40.0]
[1672576593698,74.89396086,9.9296,9.9227,302.3]
[1672576593909,74.89396086,9.9296,9.9228,40.0]
[1672576594337,74.89396086,9.9296,9.923,342.3]
[1672576594551,74.89396086,9.9296,9.9233,40.0]
[1672576594765,24.6153,9.9309,9.9233,40.0]
[1672576596442,15.4,9.9308,9.9236,40.0]
[1672576596863,24.6153,9.9309,9.9236,40.0]
[1672576597285,24.6153,9.9309,9.9239,40.0]
[1672576597499,24.6153,9.9309,9.9241,302.3]
[1672576597714,24.6153,9.9309,9.9243,302.3]
[1672576597906,24.6153,9.9309,9.9246,40.0]
[1672576598118,24.6153,9.9309,9.9247,377.95]
[1672576598328,24.6153,9.9309,9.9248,40.0]
[1672576598548,24.6153,9.9309,9.925,40.0]
[1672576601483,24.6153,9.9309,9.925,342.3]
[1672576602856,24.6153,9.9309,9.9253,40.0]
[1672576603069,24.6153,9.9309,9.9254,302.3]
[1672576603274,24.6153,9.9309,9.9255,40.0]
[1672576603706,22.6121,9.9312,9.9255,40.0]
[1672576612728,22.6121,9.9312,9.9255,342.3]
[1672576613564,22.6121,9.9312,9.9257,302.3]
[1672576613777,15.39,9.9398,9.9259,302.3]
[1672576613985,15.39,9.9398,9.9258,135.64]
[1672576613986,24.2419,9.9398,9.9261,302.3]
[1672576614196,55.39,9.9397,9.9263,302.3]
[1672576614407,55.39,9.9397,9.9265,302.3]
[1672576614635,23.0504,9.9396,9.9267,342.3]
[1672576614829,23.0504,9.9396,9.9269,302.3]
[1672576615040,23.0504,9.9396,9.9272,40.0]
[1672576615251,23.0504,9.9395,9.9274,302.3]
[1672576615458,23.0504,9.9395,9.9276,302.3]
[1672576615669,23.0504,9.9395,9.9278,302.3]
[1672576615884,23.0504,9.9395,9.9281,40.0]
[1672576616100,40.0,9.9394,9.9283,302.3]
[1672576616312,40.0,9.9394,9.9286,40.0]
[1672576616521,40.0,9.9394,9.9289,40.0]
[1672576616726,40.0,9.9394,9.9291,302.3]
[1672576616938,40.0,9.9394,9.9293,302.3]
[1672576617141,40.0,9.9394,9.9296,40.0]
[1672576617352,40.0,9.9394,9.9298,302.3]
[1672576617571,40.0,9.9394,9.93,342.3]
[1672576617899,40.0,9.9394,9.9303,40.0]
[1672576618090,40.0,9.9394,9.9305,302.3]
[1672576618300,40.0,9.9394,9.9307,302.3]
[1672576618513,40.0,9.9394,9.9309,302.3]
[1672576618837,40.0,9.9394,9.9311,302.3]
[1672576619047,23.0504,9.9395,9.9313,302.3]
[1672576619254,23.0504,9.9395,9.9315,302.3]
[1672576619571,23.0504,9.9395,9.9317,302.3]
[1672576619781,23.0504,9.9395,9.9318,75.59]
[1672576620718,23.0504,9.9395,9.9308,302.3]
[1672576620935,40.0,9.9394,9.931,302.3]
[1672576621144,40.0,9.9394,9.9313,40.0]
[1672576621346,40.0,9.9394,9.9315,302.3]
[1672576621557,40.0,9.9394,9.9317,302.3]
[1672576621883,40.0,9.9394,9.9318,75.59]
[1672576622498,23.0504,9.9395,9.932,40.0]
[1672576622721,23.0504,9.9395,9.9323,40.0]
[1672576622934,23.0504,9.9395,9.9325,302.3]
[1672576623124,23.0504,9.9395,9.9323,40.0]
[1672576623125,23.0504,9.9395,9.9327,302.3]
[1672576623335,23.0504,9.9395,9.933,40.0]
[1672576623667,23.0504,9.9395,9.9333,40.0]
[1672576623882,23.0504,9.9395,9.9335,302.3]
[1672576624194,23.0504,9.9395,9.9337,302.3]
[1672576624390,23.0504,9.9395,9.9339,302.3]
[1672576624599,23.0504,9.9395,9.9342,40.0]
[1672576624816,23.0504,9.9395,9.9344,302.3]
[1672576625033,119.564,9.9404,9.9346,302.3]
[1672576625349,119.564,9.9404,9.9348,302.3]
[1672576625562,119.564,9.9404,9.9349,75.57]
[1672576626388,23.6733,9.9424,9.9344,302.3]
[1672576626613,23.6733,9.9424,9.9347,40.0]
[1672576626807,23.6733,9.9424,9.9349,40.0]
[1672576627018,23.6733,9.9424,9.9351,302.3]
[1672576627234,23.6733,9.9424,9.9353,342.3]
[1672576627443,23.6733,9.9424,9.9356,40.0]
[1672576627649,23.6733,9.9424,9.9358,302.3]
[1672576628073,23.6733,9.9424,9.9359,75.56]
[1672576628279,40.0,9.9411,9.9359,75.56]
[1672576628494,23.6733,9.9424,9.9359,75.56]
[1672576629025,40.0,9.9411,9.9359,75.56]
[1672576629227,23.6733,9.9424,9.9359,75.56]
[1672576629545,23.6733,9.9424,9.936,302.3]
[1672576629754,23.6733,9.9424,9.9243,75.62056346]
[1672576629755,23.6733,9.9424,9.9362,302.3]
[1672576630695,40.0,9.9411,9.9362,302.3]
[1672576630915,40.0,9.9411,9.9335,40.0]
[1672576631127,40.0,9.9411,9.9337,302.3]
[1672576631337,40.0,9.9411,9.934,40.0]
[1672576631542,40.0,9.9411,9.9342,302.3]
[1672576631752,40.0,9.9411,9.934,40.0]
[1672576631753,40.0,9.9411,9.9344,302.3]
[1672576631976,40.0,9.9411,9.9346,302.3]
[1672576632167,40.0,9.9411,9.934,40.0]
[1672576632168,23.6733,9.9424,9.9348,302.3]
[1672576632378,23.6733,9.9424,9.9347,75.57]
[1672576632379,23.6733,9.9424,9.935,302.3]
[1672576632591,23.6733,9.9424,9.9352,302.3]
[1672576632816,23.6733,9.9424,9.9354,302.3]
[1672576633023,23.6733,9.9424,9.9356,302.3]
[1672576633233,23.6733,9.9424,9.9358,302.3]
[1672576633672,40.0,9.9411,9.936,302.3]
[1672576633876,23.6733,9.9424,9.936,302.3]
[1672576634090,23.6733,9.9424,9.9361,75.56]
[1672576634400,23.6733,9.9424,9.9348,302.3]
[1672576634401,40.0,9.9411,9.9348,302.3]
[1672576634727,40.0,9.9411,9.9349,75.57]
[1672576635132,40.0,9.9411,9.9315,75.6]
[1672576635445,63.72,9.9411,9.9316,302.3]
[1672576635659,63.72,9.9411,9.9318,302.3]
[1672576635977,63.72,9.9411,9.932,302.3]
[1672576636187,63.72,9.9411,9.9322,302.3]
[1672576636406,63.72,9.9411,9.9324,302.3]
[1672576636609,63.72,9.9411,9.9326,342.3]
[1672576636821,63.72,9.9411,9.9328,302.3]
[1672576637023,63.72,9.9411,9.933,302.3]
[1672576637231,63.72,9.9411,9.9332,302.3]
[1672576637439,63.72,9.9411,9.9334,302.3]
[1672576637656,63.72,9.9411,9.9336,302.3]
[1672576637865,63.72,9.9411,9.9337,377.88]
[1672576641439,23.72,9.9411,9.9338,40.0]
[1672576641659,23.72,9.9411,9.934,302.3]
[1672576641970,40.0,9.941,9.9342,302.3]
[1672576642180,40.0,9.941,9.9344,302.3]
[1672576642393,40.0,9.941,9.9346,302.3]
[1672576642588,40.0,9.941,9.9347,377.87]
[1672576647113,36.97184882,9.9441,9.9347,377.87]
[1672576647114,150.82829419,9.95,9.9348,40.0]
[1672576647434,156.8621,9.9501,9.9351,40.0]
[1672576647644,40.0,9.9498,9.9353,302.3]
[1672576647860,40.0,9.9498,9.9355,302.3]
[1672576648063,40.0,9.9498,9.9358,40.0]
[1672576648281,40.0,9.9498,9.9361,40.0]
[1672576648486,40.0,9.9496,9.9363,302.3]
[1672576648703,40.0,9.9494,9.9365,302.3]
[1672576648891,1141.24415129,9.9494,9.9367,302.3]
[1672576649100,40.0,9.9492,9.9368,95.56]
[1672576649318,40.0,9.949,9.9368,95.56]
[1672576649749,64.3628,9.949,9.9369,158.8684]
[1672576649956,64.3628,9.949,9.937,95.55]
[1672576650170,70.44673269,9.9489,9.937,95.55]
[1672576650374,1092.65172264,9.9488,9.9371,159.1396]
[1672576650587,40.0,9.9486,9.9372,95.55]
[1672576650786,40.0,9.9484,9.9372,95.55]
[1672576651000,1045.87684349,9.9483,9.9373,111.9476]
[1672576651213,1066.60197146,9.9482,9.9374,95.55]
[1672576651532,40.0,9.948,9.9374,95.55]
[1672576651752,40.0,9.9478,9.9375,159.1396]
[1672576651934,15.4,9.9477,9.9376,95.55]
[1672576652152,40.0,9.9476,9.9376,95.55]
[1672576652374,40.0,9.9474,9.9377,159.1396]
[1672576652584,40.0,9.9474,9.9378,75.55]
[1672576652585,20.0,9.9473,9.9378,75.55]
[1672576652796,20.0,9.9473,9.9312,23.4547]
[1672576652797,55.4,9.9472,9.9312,23.4547]
[1672576653006,40.0,9.947,9.9314,302.3]
[1672576653201,1069.14940484,9.9469,9.9316,302.3]
[1672576653420,1081.61438145,9.9468,9.9318,302.3]
[1672576653626,40.0,9.9466,9.932,302.3]
[1672576653838,40.0,9.9464,9.9322,302.3]
[1672576654066,1101.1135396,9.9463,9.9324,302.3]
[1672576654372,60.0,9.9462,9.9326,302.3]
[1672576654586,40.0,9.946,9.9328,302.3]
[1672576654796,40.0,9.9458,9.933,302.3]
[1672576654988,35.4,9.9459,9.9332,302.3]
[1672576654989,1100.45386441,9.9457,9.9332,302.3]
[1672576655217,1100.13220082,9.9456,9.9334,302.3]
[1672576655409,40.0,9.9454,9.9336,302.3]
[1672576655634,40.0,9.9454,9.9337,377.88]
[1672576655635,40.0,9.9452,9.9337,377.88]
[1672576655855,1076.20988135,9.9451,9.9337,377.88]
[1672576656156,1077.47507746,9.945,9.9337,377.88]
[1672576656375,40.0,9.9448,9.9337,377.88]
[1672576656586,40.0,9.9446,9.9337,377.88]
[1672576656792,40.0,9.9444,9.9337,377.88]
[1672576657009,20.0,9.9443,9.9337,377.88]
[1672576657223,1047.73844251,9.9442,9.9337,377.88]
[1672576657416,40.0,9.944,9.9337,377.88]
[1672576657625,1040.7476946,9.944,9.9337,377.88]
[1672576657835,40.0,9.9438,9.9337,377.88]
[1672576658046,40.0,9.9436,9.9337,377.88]
[1672576658270,983.74893668,9.9435,9.9337,377.88]
[1672576658461,40.0,9.9434,9.9337,377.88]
[1672576658790,20.0,9.9433,9.9337,377.88]
[1672576658984,40.0,9.9432,9.9337,377.88]
[1672576659191,40.0,9.943,9.9337,377.88]
[1672576659406,983.30183749,9.9429,9.9337,377.88]
[1672576659610,40.0,9.9427,9.9337,377.88]
[1672576659842,40.0,9.9425,9.9337,377.88]
[1672576660260,40.0,9.9423,9.9337,377.88]
[1672576660467,20.0,9.9422,9.9337,377.88]
[1672576660665,40.0,9.9421,9.9337,377.88]
[1672576660875,20.0,9.942,9.9337,377.88]
[1672576661086,40.0,9.9419,9.9337,377.88]
[1672576661297,40.0,9.9417,9.9337,377.88]
[1672576668856,40.0,9.9417,9.9337,75.58]
[1672576669072,13.06554882,9.9416,9.9315,75.6]
[1672576669277,37.19464882,9.9416,9.9315,99.7731]